Cogmind - Beta 13 @@@ ROGUE MODE // 2024.07.10 @ 22:07:44 Player: keygenpie Result: Destroyed by G-34 Mercenary with Small Laser Performance ------------- Evolutions (1) 500 Regions Visited (3) 600 Robots Destroyed (79) 395 Value Destroyed (1959) 1959 Prototype IDs (5) 100 Alien Tech Used (0) 0 Bonus (240) 240 TOTAL SCORE: 3794 Bonus ------- High Alert Combat Kills 183 Follower Combat Kills 113 Friendly Fire -56 Cogmind --------- Core Integrity 0/400 Matter 230/300 Energy 265/265 System Corruption 0% Temperature Critical (509) Movement Treading (160) Location -9/Materials Parts ------- > --- POWER (1) -------- Improved Ion Engine > --- PROPULSION (3) --- Light Treads Light Treads Light Treads > --- UTILITY (2) ------ Medium Storage Unit Thief Drone Bay (1/3) > --- WEAPON (3) ------- Improved Medium Laser Heavy Assault Rifle Assault Cannon > --- INVENTORY (10) --- Light Ion Engine Light Ion Engine Armored Wheel Armored Wheel Armored Wheel Improved Heat Sink Improved Heat Sink Heavy Assault Rifle Mini Grenade Launcher Mace Peak State ------------ > --- POWER ------------ Light Nuclear Core > --- PROPULSION ------- Light Treads Light Treads Light Treads > --- UTILITY ---------- Medium Storage Unit Thief Drone Bay > --- WEAPON ----------- Assault Cannon Assault Cannon Assault Cannon > --- INVENTORY -------- Light Nuclear Core Light Treads Light Treads Improved Heat Sink Improved Heat Sink Utility Shielding EM Pulse Cannon Particle Cannon Assault Cannon Datajack [Rating: 25] Favorites ----------- Power Ion Engine Engine Ion Engine Power Core Light Nuclear Core Propulsion Light Treads Treads Light Treads Utility Medium Storage Unit Device Thief Drone Bay Storage Medium Storage Unit Protection Utility Shielding Weapon Assault Cannon Energy Gun Medium Laser Energy Cannon Particle Cannon Ballistic Gun Heavy Assault Rifle Ballistic Cannon Assault Cannon Special Melee Weapon Datajack Build | -11 -10 -10 -9 ------- Run | Yrd Mat Min Mat Slots Evolved 2 | . . . 2 Power . | . . . . Propulsion 1 | . . . 1 Utility . | . . . . Weapon 1 | . . . 1 Parts Attached 44 | 6 10 6 22 Power 6 | 1 1 1 3 Engine 4 | 1 1 1 1 Core 2 | . . . 2 Reactor . | . . . . Propulsion 13 | 2 2 1 8 Treads 13 | 2 2 1 8 Leg . | . . . . Wheel . | . . . . Hover . | . . . . Flight . | . . . . Utility 7 | 1 4 1 1 Device 3 | . 2 1 . Storage 3 | 1 1 . 1 Processor . | . . . . Hackware . | . . . . Protection 1 | . 1 . . Artifact . | . . . . Weapon 18 | 2 3 3 10 Energy Gun 4 | . 3 . 1 Energy Cannon 1 | . . . 1 Ballistic Gun 7 | 2 . 3 2 Ballistic Cannon 5 | . . . 5 Launcher . | . . . . Special Weapon . | . . . . Impact Weapon . | . . . . Slashing Weapon . | . . . . Piercing Weapon . | . . . . Special Melee Weapon 1 | . . . 1 Unidentified Prototypes 2 | . . 1 1 Parts Lost 5 | . 2 . 3 Power 1 | . 1 . . Propulsion 2 | . 1 . 1 Utility . | . . . . Weapon 2 | . . . 2 Highest Loss Streak 1 | . 1 . 1 To Critical Strikes . | . . . . Average Slot Usage (%) 99 | . 97 100 99 Engine 8 | . 13 14 5 Core 3 | . . . 5 Treads 30 | . 27 28 32 Device 11 | . 9 14 11 Storage 12 | . 14 14 11 Energy Gun 9 | . 17 20 2 Energy Cannon 1 | . . . 3 Ballistic Gun 7 | . 10 7 6 Ballistic Cannon 11 | . . . 20 Naked Turns . | . . . . Heaviest Build 36 | 13 19 26 36 Greatest Support 60 | 40 40 40 60 Greatest Overweight (x) 1 | . . . 1 Average Overweight (x) . | . . . . Largest Inventory Capacity 10 | 8 10 10 10 Average Capacity 9 | 7 8 10 10 Most Carried 10 | 6 8 10 10 Average Carried 8 | 3 6 9 9 Final Capacity 10 | 8 10 10 10 Final Carried 10 | 6 8 10 10 Class Distribution -------------------- 42% | Scavenger-Gunner 40% | Mutant 12% | Gunner 4% | Scavenger-Mutant Dominant Class ---------------- Mutant | -10/Materials Mutant | -10/Mines Scavenger-Gunner | -9/Materials Resources | -11 -10 -10 -9 ----------- Run | Yrd Mat Min Mat Matter Collected 1905 | 202 253 68 1382 Remotely 10 | . 10 . . Salvage Created 2351 | . 560 272 1519 Parts 151 | . 42 15 94 Haulers Intercepted 7 | . 1 . 6 Recyclers Shooed 1 | . 1 . . Parts Field Recycled . | . . . . Retrieved Matter . | . . . . Parts Self-Destructed . | . . . . Prevented . | . . . . Kills | -11 -10 -10 -9 ------- Run | Yrd Mat Min Mat Combat Hostiles Destroyed 53 | . 10 7 36 Guns 20 | . 10 7 3 Cannons 31 | . . . 31 AOE 2 | . . . 2 Classes Destroyed 11 | . 6 . 5 Worker 6 | . 2 . 4 Builder 2 | . . . 2 Tunneler 1 | . . . 1 Hauler 7 | . 1 . 6 Recycler 2 | . 1 1 . Mechanic 1 | . . . 1 Watcher 7 | . 3 . 4 Swarmer 12 | . 3 4 5 Grunt 32 | . 7 3 22 Brawler 1 | . . . 1 Sentry 8 | . . . 8 Best Kill Streak 10 | . 5 3 10 Combat Bots Only 5 | . 4 3 5 Max Kills in Single Turn 4 | . 1 2 4 Gunslinging 1 | . . 1 . Exploded 2 | . . . 2 Melee . | . . . . Uniques/NPCs Destroyed . | . . . . Combat | -11 -10 -10 -9 -------- Run | Yrd Mat Min Mat Hostile Shots Fired 285 | . 102 21 162 Missed 73 | . 28 5 40 Damage Taken 2526 | . 701 133 1692 Core 475 | . 38 30 407 Absorbed by Shields . | . . . . Redirected to Shielding 2 | . 2 . . Core Remaining (%) 86 | 100 . 72 . Volleys Fired 188 | . 52 21 115 Largest 3 | . 2 2 3 Hottest 156 | . 90 90 156 Shots Fired 471 | . 103 39 329 Gun 231 | . 103 39 89 Cannon 240 | . . . 240 Launcher . | . . . . Special . | . . . . Kinetic 339 | . 60 4 275 Thermal 132 | . 43 35 54 Explosive . | . . . . Electromagnetic . | . . . . Robot Hit Streak 9 | . 5 7 9 Robot Miss Streak 10 | . 3 3 10 Penetration Max . | . . . . Secondary Targets 4 | . 3 1 . Max Gunslinging Chain 1 | . 1 1 . Shots Hit Robots 232 | . 61 24 147 Core Hits 103 | . 27 14 62 Critical Kills 1 | . 1 . . Critical Parts Destroyed . | . . . . Critical Strikes 12 | . 2 1 9 Burn 4 | . 1 1 2 Destroy 1 | . 1 . . Blast 7 | . . . 7 Melee Attacks . | . . . . Impact . | . . . . Slashing . | . . . . Piercing . | . . . . Sneak Attacks . | . . . . Combat Hostiles . | . . . . Follow-up Attacks . | . . . . Damage Inflicted 4917 | . 706 284 3927 Guns 1686 | . 697 284 705 Cannons 2684 | . . . 2684 Explosions 494 | . . . 494 Melee . | . . . . Ramming 53 | . 9 . 44 Kinetic 3272 | . 377 41 2854 Thermal 1592 | . 320 243 1029 Explosive . | . . . . Electromagnetic . | . . . . Impact . | . . . . Slashing . | . . . . Piercing . | . . . . Highest Corruption . | . . . . Average Corruption . | . . . . Corruption Purged . | . . . . Corruption Blocked . | . . . . Overload Shots . | . . . . Overflow Damage 73 | . . . 73 Projectiles 26 | . . . 26 Explosions 47 | . . . 47 Melee . | . . . . Knockbacks 16 | . . . 16 Impact 1 | . . . 1 Kinetic 14 | . . . 14 Secondary 1 | . . . 1 Self-Inflicted Damage 191 | . . . 191 Shots 2 | . . . 2 Rammed 8 | . 1 . 7 Targets Rammed 9 | . 2 . 7 Kicked . | . . . . Crushed 1 | . 1 . . Highest Temperature 613 | . 66 99 613 Average Temperature 133 | . 27 38 145 Received Heat Transfer 819 | . 183 18 618 Effects 21 | . . . 21 Shutdowns 5 | . . . 5 Energy Bleed 6 | . . . 6 Interference 5 | . . . 5 Short Circuit 1 | . . . 1 Damage (minor) 1 | . . . 1 Damage (major) 2 | . . . 2 Damage (core) 1 | . . . 1 Siege Activations . | . . . . Robots Corrupted . | . . . . Combat Hostiles . | . . . . Parts Fried . | . . . . Impact Corruptions . | . . . . Robots Melted . | . . . . Combat Hostiles . | . . . . Parts Melted 3 | . . 1 2 Heat Transferred 3243 | . 953 719 1571 Parts Sabotaged . | . . . . Parts Stolen . | . . . . Parts Stripped . | . . . . Power Chain Reactions . | . . . . Alert | -11 -10 -10 -9 ------- Run | Yrd Mat Min Mat Peak Influence 777 | . 177 149 777 Initial 14 | . . 2 14 Average 257 | . 40 62 411 Maximum Alert Level 3 | . . . 3 Low Security (%) 50 | 100 100 100 14 Level 1 14 | . . . 25 Level 2 31 | . . . 55 Level 3 2 | . . . 4 Level 4 . | . . . . Level 5 . | . . . . High Security . | . . . . Max Security . | . . . . Squads Dispatched 7 | . 1 . 6 Investigation 2 | . . . 2 Extermination . | . . . . Reinforcement 4 | . 1 . 3 Assault 1 | . . . 1 Garrison . | . . . . Intercept . | . . . . Searches Triggered . | . . . . Construction Impeded . | . . . . Haulers Reinforced . | . . . . Active Scanning Responses . | . . . . Cargo Convoy Interrupts . | . . . . Stealth | -11 -10 -10 -9 --------- Run | Yrd Mat Min Mat Distress Signals 3 | . 1 . 2 Communications Jammed . | . . . . Distress Signals . | . . . . Times Spotted 82 | . 17 9 56 Peak Tracking Total 8 | . 6 3 8 Tactical Retreats 1 | . . . 1 Traps | -11 -10 -10 -9 ------- Run | Yrd Mat Min Mat Traps Triggered 2 | . . . 2 Indirectly . | . . . . Trap Hack Attempts . | . . . . Triggered . | . . . . Disarmed . | . . . . Reprogrammed . | . . . . Reused . | . . . . Traps Extracted . | . . . . Installed . | . . . . Triggered . | . . . . Machines | -11 -10 -10 -9 ---------- Run | Yrd Mat Min Mat Machines Disabled 9 | . . . 9 Max in Single Turn 3 | . . . 3 Machines Repaired . | . . . . Machines Dismantled . | . . . . Machines Sabotaged . | . . . . Overloaded Fab Kills . | . . . . Hacking | -11 -10 -10 -9 --------- Run | Yrd Mat Min Mat Machines Accessed 12 | . 3 2 7 Terminals 9 | . 3 1 5 Fabricators . | . . . . Repair Stations . | . . . . Recycling Units 1 | . . . 1 Scanalyzers 1 | . . . 1 Garrison Access . | . . . . Total Hacks 31 | . 9 2 20 Successful 21 | . 6 2 13 Failed 10 | . 3 . 7 Catastrophic 2 | . 1 . 1 Database Lockouts . | . . . . Manual . | . . . . Terminals 20 | . 9 1 10 Fabricators . | . . . . Repair Stations . | . . . . Recycling Units 3 | . . . 3 Scanalyzers 7 | . . . 7 Garrison Access . | . . . . Terminal Hacks 12 | . 6 2 4 Robot Analysis 1 | . . . 1 Prototype ID Bank 2 | . 1 . 1 Open Door 1 | . . 1 . Unreport Threat 2 | . 2 . . Locate Traps 2 | . 2 . . Maintenance Status 1 | . . . 1 Hauler Manifests 1 | . . . 1 Zone Layout 2 | . 1 1 . Fabricator Hacks . | . . . . Repair Station Hacks . | . . . . Recycling Unit Hacks 2 | . . . 2 Report Inventory 1 | . . . 1 Retrieve Components 1 | . . . 1 Scanalyzer 7 | . . . 7 Insert Component 3 | . . . 3 Analyze 4 | . . . 4 Garrison Access Hacks . | . . . . Unauthorized Hacks . | . . . . Terminals . | . . . . Fabricators . | . . . . Repair Stations . | . . . . Recycling Units . | . . . . Scanalyzers . | . . . . Garrison Access . | . . . . Data Cores Recovered . | . . . . Used . | . . . . Hacking Detections 8 | . 3 1 4 Full Trace Events 2 | . 1 . 1 Feedback Events . | . . . . Feedback Blocked . | . . . . Robot Schematics Acquired . | . . . . Robots Built . | . . . . Authchips . | . . . . Time . | . . . . Total Robot Build Rating . | . . . . Part Schematics Acquired 3 | . . . 3 Parts Built . | . . . . Authchips . | . . . . Time . | . . . . Total Part Build Rating . | . . . . Parts Repaired . | . . . . Time . | . . . . Parts Recycled . | . . . . Recycled Matter . | . . . . Retrieved Matter . | . . . . Retrieved Components 9 | . . . 9 Parts Scanalyzed 3 | . . . 3 Part Schematics Acquired 3 | . . . 3 Parts Damaged . | . . . . Bothacking | -11 -10 -10 -9 ------------ Run | Yrd Mat Min Mat Used RIF Installer . | . . . . Robots Hacked . | . . . . Non-combat . | . . . . Combat . | . . . . Robot Hacks Applied . | . . . . Relay Couplers Released . | . . . . Fabnet Peak Effective % . | . . . . Robots Rewired . | . . . . Allies Hacked . | . . . . Hacks Repelled . | . . . . Allies | -11 -10 -10 -9 -------- Run | Yrd Mat Min Mat Total Allies . | . . . . Largest Group . | . . . . Highest-Rated Group . | . . . . Highest-Rated Ally . | . . . . Total Orders . | . . . . Ally Attacks 80 | . . 24 56 Total Damage 356 | . . 89 267 Kills 7 | . . 3 4 Allies Corrupted . | . . . . Allies Melted . | . . . . Intel | -11 -10 -10 -9 ------- Run | Yrd Mat Min Mat Robot Analysis Total 1 | . . . 1 Derelict Logs Recovered 3 | . . 3 . Drone Launches 19 | . . 8 11 Drone Recoveries 17 | . . 6 11 Exploration | -11 -10 -10 -9 ------------- Run | Yrd Mat Min Mat Turns Passed 4377 | 98 743 1025 2511 Spaces Moved 2262 | 61 351 582 1268 Core 15 | 15 . . . Treads 2247 | 46 351 582 1268 Legs . | . . . . Wheels . | . . . . Hover . | . . . . Flight . | . . . . Fastest Speed 50 | 50 160 160 160 Average Speed 160 | 132 160 160 161 Slowest Speed 240 | 160 160 160 240 Overloaded Moves . | . . . . Propulsion Burnouts . | . . . . Robots Hopped . | . . . . Cave-ins Triggered . | . . . . Exploration Rate (%) 54 | 4 56 84 75 Regions Visited 3 Branch Regions 1 Pre-discovered Areas . | . . . . Known Exits Taken . | . . . . Unknown Exits Taken 3 | 1 1 1 . Scrap Searched 3 | . . 3 . Spaces Dug 12 | . . . 12 Terrain Destroyed 99 | . . . 99 Melee . | . . . . Projectile 55 | . . . 55 AOE 44 | . . . 44 Terrain Rammed . | . . . . Walls Destroyed . | . . . . Machines Disabled . | . . . . Actions | -11 -10 -10 -9 --------- Run | Yrd Mat Min Mat Total 2637 | 78 435 643 1481 Wait 13 | . . 5 8 Move 2259 | 60 350 581 1268 Hop . | . . . . Pick Up 71 | 12 13 15 31 Fast Attach . | . . . . Attach 15 | 6 3 . 6 Detach . | . . . . Swap 29 | . 7 6 16 Drop 53 | . 8 15 30 Fire 188 | . 52 21 115 Melee . | . . . . Ram . | . . . . Kick . | . . . . Crush 9 | . 2 . 7 Escape Stasis . | . . . . Rewire . | . . . . Trap . | . . . . Miscellaneous . | . . . . Route ------- -11/Scrapyard -10/Materials (discovered 2 exits: *Mat / *Min) -10/Mines -9/Materials (discovered 4 exits: *Mat x3 / *Min) History --------- Turn | Location | Event 18 | -11/Scrapyard | Discovered new exit (range 13) 99 | -11/Scrapyard | Entered Materials 306 | -10/Materials | Build established: Mutant 680 | -10/Materials | Discovered new exit (range 13) 772 | -10/Materials | Discovered new exit (range 12) 799 | -10/Materials | Derelicts attacked the area 842 | -10/Materials | Entered Mines 1074 | -10/Mines | Learned 8 Materials zone layouts 1097 | -10/Mines | Learned Materials interactive machine intel 1178 | -10/Mines | Found the Drone Emporium 1188 | -10/Mines | Found Prototype Device 1203 | -10/Mines | Identified Thief Drone Bay 1785 | -10/Mines | Joined a pair of Derelicts in attacking an 0b10 outpost 1853 | -10/Mines | Learned Materials stockpile data 1858 | -10/Mines | Discovered new exit (range 6) 1867 | -10/Mines | Entered Materials 1867 | -9/Materials | Accompanied by 2 allies 1867 | -9/Materials | Evolved 2 slots: Propulsion x1, Weapon x1 1868 | -9/Materials | Identified exit to Materials 1868 | -9/Materials | Identified exit to Mines 1870 | -9/Materials | Loaded intel: 18 interactive machine locations 2173 | -9/Materials | Build established: Scavenger-Gunner 3867 | -9/Materials | First assault squad dispatched 3928 | -9/Materials | Core integrity fell below 50% 3928 | -9/Materials | Core integrity fell below 20% 4226 | -9/Materials | Build established: Gunner 4378 | -9/Materials | Destroyed by G-34 Mercenary with Small Laser Last Messages --------------- Scanning Hvy. Assault Rifle... Ready to analyze. >>Scanalyze Scanning: Hvy. Assault Rifle... Scan incomplete, additional scanning required. >>Scanalyze Scanning: Hvy. Assault Rifle... Schematic downloaded. 04346_ ALERT: Suspicious activity at Scanalyzer M001. Dispatching Investigation squad. 04353_ G-34 Mercenary destroyed. 04359_ G-34 Mercenary knocked back. 04362_ G-34 Mercenary destroyed. 04372_ G-34 Mercenary knocked back. 04373_ R-06 Scavenger collects Heat Sink. 04375_ G-34 Mercenary suffers critical hit (Burn). 04377_ R-06 Scavenger collects Aluminum Leg. 04378_ G-34 Mercenary heat damages Aluminum Leg, Ion Engine, Sml. Laser, Heat Sink. Map ----- +----------------------------------------------------+ | ??????????### # "" +* = | | ????????????#### ####### """ # | | ??????????????# #?#### """ # | | ??????????????# # ## # | | ??????????????+ # ## """ # | | ??????????????# #?# """ # | | ??????????????# # ##?# """ + | | ??????????????# ###??# ## ### | | ???????##+#???# #????######### ### | | ???????# #### #????????????# #?# | | ???????+ #????????????# #?# | | ???????# #????????????# #?# | | ???????# #???????######+### | | ???????# """ #???????# # | | ???????# """ #???????# # | | ???????# """ ######### # | | ???????# # ## #% | | ???????+ # ## #% | | ???????# # ## =# | | ???????## + ## [!+ | | # ????## # ## ==#% | | ?? ??#; " # ## # | | ???? ## T %################## | | ??????#; "u% | | ???????# r % | | # """ # g @ * | | # """ +[% ###+#############+######+# | | # ; # #?????#% # | | # # < # "S #?????#""" """ # "" | | #* Y # # """ #?????#"R """ # "" | | ## ######### "" #?????#""" """ # "" | | ?#### ! [ # #?????# # | | ????# # ! #?????#==] "" # | | ????# """ ########?????#=] !""" #### | | ????# """ #????????????# ]= """ #??? | | ????# """ #????????????# =[ % #??? | | ????# #????????????##### ####??? | | ????#####+########################### | | ??????# | | ??????# ######+####+#########+####### | | ??????# ## # #??#! #??? | | ??????# ## """ # [[""#??# """ #?"" | | ??????# ## """ [# [= Y"#??# """ ##"" | | ??????# ## """ # ==""#??# """ ##"" | | ??????# / # * #??# ##"" | | ??????#### # #??# #? | | ?????????###############??########?## | | ????????????????????????????????????? | | ????????????????????????????????????? | | ????????????????????????????????????? | +----------------------------------------------------+ Best States ------------- Heat Dissipation 35 Energy Generation 14 Energy Capacity 265 Matter Stores 300 Matter Capacity 300 Sight Range 16 Terrain Scan Density 10 Utility Shielding 33 Evasion (%) 50 Recoil Reduction 3 Item Schematics ----------------- Mni. Grenade Launcher | -9/Materials | Scanalyzed Lgt. Ion Engine | -9/Materials | Scanalyzed Hvy. Assault Rifle | -9/Materials | Scanalyzed Robot Schematics ------------------ None Fabricated ------------ Nothing Alien Tech Used ----------------- None Achievements -------------- None Challenges ------------ None Game ------ Seed PiercingBladeDrive Manual? 0 Play Time 00:33:27 Cumulative 13.5 hours Start 2024.07.06 @ 14:44:16 End 2024.07.10 @ 22:07:44 Sessions 3 Manual Loads 0 Difficulty Rogue Special Mode None Game No. 26 Rogue 26 Adventurer 0 Explorer 0 Win Type - Total 0 Types 0/0/0/0/0/0/0/0/0 Lore% 14 Gallery% 23 Achievement% 16 Wizard Run 0 Options --------- Layout 1 ASCII 0 Keyboard 0 Movement Arrows Keybinds 0 Fullscreen 1 Font 24/Tamsyn Map View 50x35 Zoom Use 0% Tactical HUD 1 Map Filters NONE Filters NONE Steam 1 RUN: d1dd94c4-57a3-4a21-8130-b82a2ada4868